fUST/lending_fUST_20251022
["ID","MTS","AMOUNT","RATE_DAILY","PERIOD"]
[392060317,1761132643264,-213.12273715,0.000456,120]
[392060318,1761132643274,-231.04466125,0.000456,120]
[392060319,1761132643284,-582.84696058,0.000456,120]
[392060320,1761132643293,-800.0281518,0.00045758,2]
[392060321,1761132643303,-55222.09,0.000458,30]
[392060322,1761132643312,-3160.41,0.000458,14]
[392060323,1761132643322,-50000.19748401,0.000459,120]
[392060324,1761132643331,-10000.0,0.00046,30]
[392060325,1761132643341,-152.0,0.000461,120]
[392060326,1761132643350,-378.684797,0.00046143,2]
[392060327,1761132643360,-411.0,0.00046559,2]
[392060328,1761132643369,-1419.49,0.00046575,120]
[392060329,1761132643378,-269.40521474,0.00046575,120]
[392060330,1761132643387,-500.0,0.00046575,120]
[392060331,1761132643397,-500.0,0.00046575,120]
[392060332,1761132643407,-500.0,0.00046575,120]
[392060333,1761132643417,-1000.0,0.00046575,2]
[392060334,1761132643426,-500.0,0.00046575,120]
[392060335,1761132643435,-500.0,0.00046575,120]
[392060336,1761132643445,-863.89,0.00046575,120]
[392060337,1761132643454,-6045.25,0.00046575,120]
[392060338,1761132643462,-500.0,0.00046575,20]
[392060339,1761132643471,-200.0,0.00046575,120]
[392060340,1761132643482,-1000.0,0.00046575,2]
[392060341,1761132643491,-500.0,0.00046575,120]
[392060342,1761132643500,-422.00151591,0.00046575,120]
[392060343,1761132643509,-500.0,0.00046575,120]
[392060344,1761132643518,-238.27158002,0.00046575,120]
[392060345,1761132643528,-500.0,0.00046575,120]
[392060346,1761132643536,-344.28543436,0.00046575,120]
[392060347,1761132643545,-322.89402484,0.00046575,120]
[392060348,1761132643554,-405.15904943,0.00046575,120]
[392060349,1761132643563,-500.0,0.00046575,120]
[392060350,1761132643572,-450.13093254,0.00046575,120]
[392060351,1761132643580,-387.22821303,0.00046575,120]
[392060352,1761132643589,-157.36464837,0.00046575,120]
[392060353,1761132643598,-500.0,0.00046575,5]
[392060354,1761132643607,-438.172577,0.00046575,120]
[392060355,1761132643617,-420.52358588,0.00046575,120]
[392060356,1761132643626,-269.16192923,0.00046575,120]
[392060357,1761132643635,-392.6280856,0.00046575,120]
[392060358,1761132643644,-435.58932894,0.00046575,120]
[392060359,1761132643655,-500.0,0.00046575,120]
[392060360,1761132643664,-162.57504482,0.00046575,120]
[392060361,1761132643674,-582.70792291,0.00046575,7]
[392060362,1761132643683,-350.53803323,0.00046575,120]
[392060363,1761132643692,-1000.0,0.00046575,2]
[392060364,1761132643701,-1590.98,0.00046575,2]
[392060365,1761132643710,-500.0,0.00046575,120]
[392060366,1761132643719,-500.0,0.00046575,120]
[392060367,1761132643729,-500.0,0.00046575,120]
[392060368,1761132643738,-500.0,0.00046575,120]
[392060369,1761132643747,-612.00323449,0.00046575,120]
[392060370,1761132643756,-607.55,0.00046575,120]
[392060371,1761132643765,-500.0,0.00046575,120]
[392060372,1761132643775,-501.21275149,0.00046575,120]
[392060373,1761132643784,-450.148172,0.00046575,120]
[392060374,1761132643793,-500.0,0.00046575,120]
[392060375,1761132643802,-500.0,0.00046575,120]
[392060376,1761132643811,-444.69651408,0.00046575,120]
[392060377,1761132643822,-500.0,0.00046575,120]
[392060378,1761132643832,-500.0,0.00046575,120]
[392060379,1761132643841,-401.64944066,0.00046575,120]
[392060380,1761132643850,-500.0,0.00046575,30]
[392060381,1761132643859,-500.0,0.00046575,15]
[392060382,1761132643868,-248.84257755,0.00046575,120]
[392060383,1761132643879,-2389.58,0.00046575,120]
[392060384,1761132643888,-246.9595473,0.00046575,120]
[392060385,1761132643897,-229.89190728,0.00046575,120]
[392060386,1761132643906,-500.0,0.00046575,120]
[392060387,1761132643915,-158.56603055,0.00046575,120]
[392060388,1761132643925,-500.0,0.00046575,120]
[392060389,1761132643934,-220.96140396,0.00046575,120]
[392060390,1761132643944,-749.95,0.00046575,120]
[392060391,1761132643953,-500.0,0.00046575,120]
[392060392,1761132643962,-369.99,0.00046575,120]
[392060393,1761132643976,-294.63469225,0.00046575,120]
[392060394,1761132643986,-500.0,0.00046575,120]
[392060395,1761132643995,-422.00755294,0.00046575,120]
[392060396,1761132644004,-412.47532101,0.00046575,120]
[392060397,1761132644014,-500.0,0.00046575,120]
[392060398,1761132644023,-450.04226646,0.00046575,120]
[392060399,1761132644032,-310.89209667,0.00046575,120]
[392060400,1761132644041,-370.15168552,0.00046575,120]
[392060401,1761132644050,-312.37388576,0.00046575,120]
[392060402,1761132644059,-315.29830206,0.00046575,120]
[392060403,1761132644069,-500.0,0.00046575,120]
[392060404,1761132644079,-314.89028414,0.00046575,120]
[392060405,1761132644088,-567.93807335,0.00046575,120]
[392060406,1761132644098,-235.14490279,0.00046575,120]
[392060407,1761132644108,-500.0,0.00046575,120]
[392060408,1761132644117,-500.0,0.00046575,120]
[392060409,1761132644127,-500.0,0.00046575,120]
[392060410,1761132644137,-3588.33,0.00046575,3]
[392060411,1761132644147,-500.0,0.00046575,120]
[392060412,1761132644156,-460.0,0.00046575,120]
[392060413,1761132644166,-500.0,0.00046575,120]
[392060414,1761132644176,-285.84973559,0.00046575,120]
[392060415,1761132644185,-229.8743254,0.00046575,120]
[392060416,1761132644194,-270.20670006,0.00046575,120]
[392060417,1761132644204,-903.04,0.00046575,120]
[392060418,1761132644213,-193.19471656,0.00046575,120]
[392060419,1761132644222,-507.5189185,0.00046575,120]
[392060420,1761132644235,-500.0,0.00046575,120]
[392060421,1761132644244,-500.0,0.00046575,120]
[392060422,1761132644253,-500.0,0.00046575,120]
[392060423,1761132644262,-443.34804789,0.00046575,120]
[392060424,1761132644271,-575.19,0.00046575,2]
[392060425,1761132644280,-267.83676891,0.00046575,120]
[392060426,1761132644291,-500.0,0.00046575,2]
[392060427,1761132644300,-553.31947537,0.00046575,120]
[392060428,1761132644310,-500.0,0.00046575,120]
[392060429,1761132644319,-500.0,0.00046575,120]
[392060430,1761132644328,-500.0,0.00046575,120]
[392060431,1761132644415,-353.46987684,0.00046575,120]
[392060432,1761132644424,-273.7372459,0.00046575,120]
[392060433,1761132644434,-500.0,0.00046575,120]
[392060434,1761132644445,-500.0,0.00046575,120]
[392060435,1761132644455,-175.25191809,0.00046575,120]
[392060436,1761132644464,-544.35,0.00046575,120]
[392060437,1761132644473,-368.53541687,0.00046575,120]
[392060438,1761132644484,-224.74968221,0.00046575,120]
[392060439,1761132644493,-525.19208295,0.00046575,120]
[392060440,1761132644503,-1419.49,0.00046849,120]
[392060441,1761132644512,-500.0,0.00046849,120]
[392060442,1761132644521,-500.0,0.00046849,120]
[392060443,1761132644530,-500.0,0.00046849,120]
[392060444,1761132644539,-500.0,0.00046849,120]
[392060445,1761132644548,-500.0,0.00046849,120]
[392060446,1761132644557,-863.89,0.00046849,120]
[392060447,1761132644566,-6045.25,0.00046849,120]
[392060448,1761132644576,-500.0,0.00046849,20]
[392060449,1761132644586,-200.0,0.00046849,120]
[392060450,1761132644595,-1000.0,0.00046849,2]
[392060451,1761132644605,-500.0,0.00046849,120]
[392060452,1761132644614,-500.0,0.00046849,120]
[392060453,1761132644624,-500.0,0.00046849,120]
[392060454,1761132644634,-500.0,0.00046849,120]
[392060455,1761132644643,-500.0,0.00046849,5]
[392060456,1761132644652,-500.0,0.00046849,120]
[392060457,1761132644661,-561.61499378,0.00046849,2]
[392060458,1761132644670,-1590.98,0.00046849,2]
[392060459,1761132644679,-500.0,0.00046849,120]
[392060460,1761132644691,-500.0,0.00046849,120]
[392060461,1761132644701,-500.0,0.00046849,120]
[392060462,1761132644711,-500.0,0.00046849,120]
[392060463,1761132644720,-607.55,0.00046849,120]
[392060464,1761132644730,-500.0,0.00046849,120]
[392060465,1761132644739,-500.0,0.00046849,120]
[392060466,1761132644748,-500.0,0.00046849,120]
[392060467,1761132644757,-500.0,0.00046849,120]
[392060468,1761132644766,-500.0,0.00046849,120]
[392060469,1761132644776,-500.0,0.00046849,30]
[392060470,1761132644785,-500.0,0.00046849,15]
[392060471,1761132644794,-2389.58,0.00046849,120]
[392060472,1761132644803,-500.0,0.00046849,120]
[392060473,1761132644812,-500.0,0.00046849,120]
[392060474,1761132644822,-749.95,0.00046849,120]
[392060475,1761132644830,-500.0,0.00046849,120]
[392060476,1761132644840,-500.0,0.00046849,120]
[392060477,1761132644849,-298.40476063,0.00046849,120]
[392060478,1761132644859,-500.0,0.00046849,120]
[392060479,1761132644868,-500.0,0.00046849,120]
[392060480,1761132644877,-258.79007502,0.00046849,120]
[392060481,1761132644886,-500.0,0.00046849,120]
[392060482,1761132644895,-3588.33,0.00046849,3]
[392060483,1761132644904,-500.0,0.00046849,120]
[392060484,1761132644913,-903.04,0.00046849,120]
[392060485,1761132644922,-500.0,0.00046849,120]
[392060486,1761132644931,-500.0,0.00046849,120]
[392060487,1761132644940,-500.0,0.00046849,120]
[392060488,1761132644950,-575.19,0.00046849,2]
[392060489,1761132644959,-343.47414822,0.00046849,120]
[392060490,1761132644970,-500.0,0.00046849,120]
[392060491,1761132644982,-500.0,0.00046849,120]
[392060492,1761132644991,-500.0,0.00046849,120]
[392060493,1761132645001,-500.0,0.00046849,120]
[392060494,1761132645011,-544.35,0.00046849,120]
[392060495,1761132645019,-178.5104096,0.00046906,2]
[392060496,1761132645029,-10000.0,0.00047,30]
[392060497,1761132645037,-365.24,0.00047026,30]
[392060498,1761132645046,-252.188764,0.00047095,60]
[392060499,1761132645056,-151.0,0.00047123,120]
[392060500,1761132645065,-151.0,0.00047123,120]
[392060501,1761132645075,-1419.49,0.00047123,120]
[392060502,1761132645085,-151.0,0.00047123,120]
[392060503,1761132645095,-500.0,0.00047123,120]
[392060504,1761132645105,-500.0,0.00047123,120]
[392060505,1761132645114,-500.0,0.00047123,120]
[392060506,1761132645123,-500.0,0.00047123,120]
[392060507,1761132645133,-863.89,0.00047123,120]
[392060508,1761132645142,-6045.25,0.00047123,120]
[392060509,1761132645151,-500.0,0.00047123,20]
[392060510,1761132645161,-200.0,0.00047123,120]
[392060511,1761132645170,-1000.0,0.00047123,2]
[392060512,1761132645179,-500.0,0.00047123,120]
[392060513,1761132645188,-500.0,0.00047123,120]
[392060514,1761132645197,-500.0,0.00047123,120]
[392060515,1761132645207,-500.0,0.00047123,120]
[392060516,1761132645216,-1590.98,0.00047123,2]
[392060517,1761132645226,-500.0,0.00047123,120]
[392060518,1761132645236,-500.0,0.00047123,120]
[392060519,1761132645248,-500.0,0.00047123,120]
[392060520,1761132645257,-594.53349554,0.00047123,120]
[392060521,1761132645267,-607.55,0.00047123,120]
[392060522,1761132645276,-500.0,0.00047123,120]
[392060523,1761132645285,-500.0,0.00047123,120]
[392060524,1761132645295,-500.0,0.00047123,120]
[392060525,1761132645305,-500.0,0.00047123,120]
[392060526,1761132645315,-583.43005014,0.00047123,120]
[392060527,1761132645324,-500.0,0.00047123,30]
[392060528,1761132645334,-500.0,0.00047123,15]
[392060529,1761132645343,-2389.58,0.00047123,120]
[392060530,1761132645352,-500.0,0.00047123,120]
[392060531,1761132645362,-749.95,0.00047123,120]
[392060532,1761132645372,-246.72033899,0.00047123,120]
[392060533,1761132645381,-500.0,0.00047123,120]
[392060534,1761132645390,-500.0,0.00047123,120]
[392060535,1761132645400,-500.0,0.00047123,120]
[392060536,1761132645410,-500.0,0.00047123,120]
[392060537,1761132645419,-3588.33,0.00047123,3]
[392060538,1761132645429,-265.49765954,0.00047123,120]
[392060539,1761132645438,-903.04,0.00047123,120]
[392060540,1761132645447,-500.0,0.00047123,120]
[392060541,1761132645456,-500.0,0.00047123,120]
[392060542,1761132645465,-500.0,0.00047123,120]
[392060543,1761132645474,-575.19,0.00047123,2]
[392060544,1761132645484,-500.0,0.00047123,120]
[392060545,1761132645494,-500.0,0.00047123,120]
[392060546,1761132645505,-500.0,0.00047123,120]
[392060547,1761132645515,-500.0,0.00047123,120]
[392060548,1761132645525,-544.35,0.00047123,120]
[392060549,1761132645534,-9999.991162,0.000472,120]
[392060550,1761132645543,-1419.49,0.00047397,120]
[392060551,1761132645552,-500.0,0.00047397,120]
[392060552,1761132645561,-500.0,0.00047397,120]
[392060553,1761132645571,-500.0,0.00047397,120]
[392060554,1761132645581,-863.89,0.00047397,120]
[392060555,1761132645591,-6045.25,0.00047397,120]
[392060556,1761132645601,-500.0,0.00047397,20]
[392060557,1761132645611,-200.0,0.00047397,120]
[392060558,1761132645621,-1000.0,0.00047397,2]
[392060559,1761132645631,-500.0,0.00047397,120]
[392060560,1761132645640,-288.54069869,0.00047397,120]
[392060561,1761132645650,-500.0,0.00047397,120]
[392060562,1761132645660,-500.0,0.00047397,120]
[392060563,1761132645669,-1590.98,0.00047397,2]
[392060564,1761132645679,-500.0,0.00047397,120]
[392060565,1761132645689,-500.0,0.00047397,120]
[392060566,1761132645698,-500.0,0.00047397,120]
[392060567,1761132645708,-607.55,0.00047397,120]
[392060568,1761132645719,-500.0,0.00047397,120]
[392060569,1761132645729,-500.0,0.00047397,120]
[392060570,1761132645738,-500.0,0.00047397,120]
[392060571,1761132645747,-500.0,0.00047397,120]
[392060572,1761132645756,-500.0,0.00047397,30]
[392060573,1761132645765,-500.0,0.00047397,15]
[392060575,1761132645774,-2389.58,0.00047397,120]
[392060577,1761132645783,-500.0,0.00047397,120]
[392060578,1761132645793,-749.95,0.00047397,120]
[392060579,1761132645802,-500.0,0.00047397,120]
[392060580,1761132645811,-500.0,0.00047397,120]
[392060581,1761132645820,-500.0,0.00047397,120]
[392060582,1761132645830,-3588.33,0.00047397,3]
[392060583,1761132645838,-903.04,0.00047397,120]
[392060584,1761132645848,-602.25293349,0.00047397,120]
[392060585,1761132645857,-500.0,0.00047397,120]
[392060586,1761132645867,-548.2556978,0.00047397,120]
[392060587,1761132645878,-575.19,0.00047397,2]
[392060588,1761132645889,-338.54362735,0.00047397,120]
[392060589,1761132645900,-500.0,0.00047397,120]
[392060590,1761132645910,-500.0,0.00047397,120]
[392060591,1761132645920,-500.0,0.00047397,120]
[392060592,1761132645931,-544.35,0.00047397,120]
[392060593,1761132645940,-2135745.7836595,0.00047444,30]
[392060594,1761132645997,-755.0,0.00046575,120]
[392060595,1761132646007,-20807.0,0.00047444,30]
[392060596,1761132646018,-287.54158568,0.00047444,30]
[392060597,1761132646109,-370.45,0.0002875,10]
[392060598,1761132646119,-755.0,0.00046849,120]
[392060599,1761132646128,-755.0,0.00047123,120]
[392060600,1761132646138,-755.0,0.00047397,120]
[392060601,1761132646147,-2761.042,0.00047444,30]
[392060603,1761132646250,-163.798011,0.00041657,10]
[392060604,1761132646260,-92.401989,0.00044,10]
[392060605,1761132646275,-71.396022,0.00044,10]
[392060606,1761132646284,-163.798011,0.00044405,2]
[392060607,1761132646293,-407.86393735,0.00046575,120]
[392060608,1761132646303,-433.13454412,0.00046575,120]
[392060609,1761132646389,-367.36255238,0.00047444,30]
[392060610,1761132646403,-108141.16611951,0.00047444,30]
[392060611,1761132646414,-4492.7077019,0.00047444,30]
[392060612,1761132646537,-500.0,0.00027999,2]
[392060613,1761132646547,-500.0,0.00027999,2]
[392060614,1761132646556,-500.0,0.00027999,2]
[392060615,1761132646565,-10190.80905954,0.00043444,30]
[392060618,1761133308827,-424.25913792,0.00024453,2]
[392060620,1761133433260,3171.82,0.000239,2]
[392060621,1761133433286,1828.18,0.000239,2]
[392060622,1761133452806,161.0,0.00024,120]
[392060623,1761133455655,5000.0,0.000239,2]
[392060624,1761133477979,2635.52312036,0.000239,2]
[392060625,1761133525129,150.0,0.00020279,2]
[392060626,1761133525608,150.0,0.00022123,2]
[392060627,1761133622701,236.30687964,0.000239,2]
[392060628,1761133622727,1055.49346418,0.000239,2]
[392060629,1761133647874,210.9971212,0.00023658,2]
[392060630,1761133682211,150.0,0.00020247,2]
[392060631,1761133682668,150.0,0.00022088,2]
[392060632,1761133761619,150.0,0.00020322,2]
[392060633,1761133762072,150.0,0.0002217,2]
[392060687,1761133832239,-161.75915953,0.00023937,2]
[392060688,1761133832249,-196.23,0.00024017,2]
[392060689,1761133832258,-212.20263346,0.00024037,2]
[392060690,1761133832267,-500.0,0.000243,2]
[392060691,1761133832276,-1042.10797611,0.00024314,2]
[392060692,1761133832295,-653.11512369,0.00024314,2]
[392060693,1761133832306,-161.75915953,0.0002435,2]
[392060694,1761133832315,-1200.0,0.0002445,2]
[392060695,1761133832326,-300.0,0.0002445,2]
[392060696,1761133832335,-300.0,0.0002445,2]
[392060697,1761133832345,-1200.0,0.0002445,2]
[392060698,1761133832354,-300.0,0.0002445,2]
[392060699,1761133832363,-7364.78641658,0.00024453,2]
[392060700,1761133832371,-50000.0,0.00024937,2]
[392060701,1761133832380,-2398.3137075,0.00024937,2]
[392060702,1761133832393,-300.0,0.00024941,20]
[392060703,1761133832402,-300.0,0.00024941,20]
[392060704,1761133832411,-548.84371842,0.0002498,10]
[392060705,1761133832423,-1114.06628158,0.0002498,10]
[392060706,1761133832433,-801.94,0.0002498,10]
[392060707,1761133832446,-1252.1,0.0002498,10]
[392060708,1761133832455,-1252.1,0.0002498,10]
[392060709,1761133832464,-481.50333173,0.00024989,2]
[392060710,1761133832474,-257.06052754,0.00024989,2]
[392060711,1761133832485,-64579.47563637,0.0002499,2]
[392060712,1761133832498,-555.11056296,0.0002499,2]
[392060713,1761133832509,-259.60419376,0.0002499,2]
[392060737,1761133837800,-500.0,0.00024936,2]
[392060739,1761133837809,-500.0,0.00024936,2]
[392060741,1761133837819,-500.0,0.00024936,2]
[392060744,1761133837832,-500.0,0.00024936,2]
[392060745,1761133837841,-187.63,0.00024936,2]
[392060748,1761133837853,-312.37,0.00024936,2]
[392060750,1761133837863,-500.0,0.00024936,2]
[392060752,1761133837872,-304.6738453,0.00024936,2]
[392060754,1761133837882,-500.0,0.00024936,2]
[392060756,1761133837891,-500.0,0.00024936,2]
[392060758,1761133837900,-500.0,0.00024936,2]
[392060760,1761133837907,-500.0,0.00024936,2]
[392060762,1761133837916,-500.0,0.00024936,2]
[392060764,1761133837924,-500.0,0.00024936,2]
[392060766,1761133837932,-627.04119948,0.00024936,2]
[392060769,1761133837941,-502.81412001,0.00024936,2]
[392060772,1761133837951,-500.0,0.00024936,2]
[392060775,1761133837960,-500.0,0.00024936,2]
[392060777,1761133837970,-500.0,0.00024936,2]
[392060779,1761133837982,-500.0,0.00024936,2]
[392060781,1761133837991,-225.28631517,0.00024936,2]
[392060783,1761133838007,-500.0,0.00024936,2]
[392060785,1761133838017,-500.0,0.00024936,2]
[392060787,1761133838026,-500.0,0.00024936,2]
[392060789,1761133838037,-500.0,0.00024936,2]
[392060791,1761133838046,-500.0,0.00024936,2]
[392060793,1761133838056,-500.0,0.00024936,2]
[392060795,1761133838066,-500.0,0.00024936,2]
[392060797,1761133838076,-500.0,0.00024936,2]
[392060799,1761133838085,-500.0,0.00024936,2]
[392060801,1761133838094,-500.0,0.00024936,2]
[392060803,1761133838103,-500.0,0.00024936,2]
[392060805,1761133838113,-500.0,0.00024936,2]
[392060817,1761133838218,-500.0,0.00024936,2]
[392060819,1761133838233,-500.0,0.00024936,2]
[392060821,1761133838242,-500.0,0.00024936,2]
[392060823,1761133838254,-500.0,0.00024936,2]
[392060825,1761133838264,-500.0,0.00024936,2]
[392060827,1761133838274,-434.20787984,0.00024936,2]
[392060829,1761133838283,-500.0,0.00024936,2]
[392060831,1761133838294,-500.0,0.00024936,2]
[392060833,1761133838304,-169.7170382,0.00024936,2]
[392060835,1761133838314,-500.0,0.00024936,2]
[392060837,1761133838326,-500.0,0.00024936,2]
[392060840,1761133838339,-500.0,0.00024936,2]
[392060842,1761133838348,-500.0,0.00024936,2]
[392060844,1761133838358,-500.0,0.00024936,2]
[392060846,1761133838368,-423.60525884,0.00024936,2]
[392060848,1761133838377,-500.0,0.00024936,2]
[392060850,1761133838387,-500.0,0.00024936,2]
[392060852,1761133838397,-500.0,0.00024936,2]
[392060854,1761133838407,-500.0,0.00024936,2]
[392060856,1761133838416,-500.0,0.00024936,2]
[392060858,1761133838425,-500.0,0.00024936,2]
[392060859,1761133838434,-500.0,0.00024936,2]
[392060862,1761133838447,-500.0,0.00024936,2]
[392060863,1761133838457,-500.0,0.00024936,2]
[392060865,1761133838467,-500.0,0.00024936,2]
[392060868,1761133838476,-500.0,0.00024936,2]
[392060870,1761133838487,-500.0,0.00024936,2]
[392060872,1761133838496,-500.0,0.00024936,2]
[392060874,1761133838508,-500.0,0.00024936,2]
[392060876,1761133838518,-500.0,0.00024936,2]
[392060878,1761133838530,-500.0,0.00024936,2]
[392060880,1761133838539,-500.0,0.00024936,2]
[392060881,1761133838549,-500.0,0.00024936,2]
[392060883,1761133838559,-500.0,0.00024936,2]
[392060885,1761133838569,-500.0,0.00024936,2]
[392060887,1761133838578,-500.0,0.00024936,2]
[392060889,1761133838588,-500.0,0.00024936,2]
[392060891,1761133838597,-500.0,0.00024936,2]
[392060893,1761133838607,-500.0,0.00024936,2]
[392060896,1761133838617,-224.45893394,0.00024936,2]
[392060897,1761133838626,-500.0,0.00024936,2]
[392060899,1761133838636,-500.0,0.00024936,2]
[392060902,1761133838646,-509.23157466,0.00024936,2]
[392060904,1761133838655,-500.0,0.00024936,2]
[392060906,1761133838664,-500.0,0.00024936,2]
[392060907,1761133838673,-500.0,0.00024936,2]
[392060909,1761133838683,-500.0,0.00024936,2]
[392060911,1761133838692,-500.0,0.00024936,2]
[392060913,1761133838701,-500.0,0.00024936,2]
[392060916,1761133838711,-500.0,0.00024936,2]
[392060917,1761133838721,-834.74,0.0002498,10]
[392060920,1761133838731,-34605.80960691,0.0002499,2]
[392060922,1761133838740,-250.39910748,0.00025037,2]
[392060923,1761133838750,-500.0,0.00025057,2]
[392060926,1761133838760,-11060.09812577,0.00025058,2]
[392060927,1761133838769,-500.0,0.00025073,2]
[392060930,1761133838779,-500.82699209,0.00025073,2]
[392060932,1761133838788,-500.0,0.00025073,2]
[392060934,1761133838797,-500.0,0.00025073,2]
[392060936,1761133838807,-500.0,0.00025073,2]
[392060938,1761133838816,-500.0,0.00025073,2]
[392060940,1761133838825,-630.81369819,0.00025073,2]
[392060942,1761133838834,-183.54575813,0.00025073,2]
[392060944,1761133838844,-500.0,0.00025073,2]
[392060946,1761133838853,-500.0,0.00025073,2]
[392060948,1761133838862,-500.0,0.00025073,2]
[392060950,1761133838872,-500.0,0.00025073,2]
[392060952,1761133838881,-500.0,0.00025073,2]
[392060954,1761133838891,-523.18279134,0.00025073,2]
[392060956,1761133838901,-500.0,0.00025073,2]
[392060958,1761133838911,-500.0,0.00025073,2]
[392060960,1761133838922,-500.0,0.00025073,2]
[392060962,1761133838931,-500.0,0.00025073,2]
[392060964,1761133838941,-501.22472656,0.00025073,2]
[392060966,1761133838950,-500.0,0.00025073,2]
[392060968,1761133838960,-500.0,0.00025073,2]
[392060970,1761133838969,-500.0,0.00025073,2]
[392060972,1761133838978,-157.70898129,0.00025073,2]
[392060974,1761133838988,-662.93759421,0.000251,2]
[392060976,1761133838997,-81120.1607858,0.00025169,2]
[392060978,1761133839008,-503.68105493,0.00025173,2]
[392060980,1761133839019,-500.0,0.00025173,2]
[392060982,1761133839029,-500.0,0.00025173,2]
[392060984,1761133839038,-500.0,0.00025173,2]
[392060986,1761133839049,-500.0,0.00025173,2]
[392060988,1761133839058,-500.0,0.00025173,2]
[392060990,1761133839069,-501.80797894,0.00025173,2]
[392060992,1761133839079,-500.0,0.00025173,2]
[392060994,1761133839088,-500.0,0.00025173,2]
[392060996,1761133839098,-325.53850932,0.00025173,2]
[392060998,1761133839107,-212.61274819,0.00025173,2]
[392061000,1761133839117,-502.11075442,0.00025173,2]
[392061002,1761133839127,-501.80042414,0.00025173,2]
[392061004,1761133839137,-500.0,0.00025173,2]
[392061006,1761133839146,-500.0,0.00025173,2]
[392061008,1761133839156,-500.0,0.00025173,2]
[392061010,1761133839166,-502.43854319,0.00025173,2]
[392061012,1761133839177,-500.0,0.00025173,2]
[392061013,1761133839187,-613.29873445,0.00025173,2]
[392061015,1761133839197,-500.0,0.00025173,2]
[392061017,1761133839206,-81120.1607858,0.0002519,2]
[392061019,1761133839216,-500.0,0.00025199,2]
[392061021,1761133839226,-12036.35878858,0.000252,2]
[392061023,1761133839235,-500.0,0.00025331,2]
[392061025,1761133839245,-289.48923361,0.00025396,2]
[392061027,1761133839256,-500.0,0.00025605,2]
[392061029,1761133839266,-500.0,0.00025621,2]
[392061031,1761133839276,-1000.0,0.00025621,2]
[392061033,1761133839286,-365.17496257,0.00025621,2]
[392061035,1761133839295,-1000.0,0.00025621,2]
[392061037,1761133839305,-1007.01104168,0.00025621,2]
[392061039,1761133839315,-1000.0,0.00025621,2]
[392061042,1761133839325,-739.1041431,0.00025621,2]
[392061044,1761133839335,-1000.0,0.00025621,2]
[392061045,1761133839345,-1000.0,0.00025621,2]
[392061047,1761133839354,-1000.0,0.00025621,2]
[392061049,1761133839364,-1000.0,0.00025621,2]
[392061051,1761133839373,-500.0,0.00025621,2]
[392061054,1761133839384,-1000.0,0.00025621,2]
[392061056,1761133839393,-505.11398729,0.00025621,2]
[392061057,1761133839403,-500.0,0.00025621,2]
[392061059,1761133839413,-502.66916721,0.00025673,2]
[392061061,1761133839422,-500.0,0.00025673,2]
[392061063,1761133839432,-500.0,0.00025673,2]
[392061065,1761133839441,-503.10569259,0.00025673,2]
[392061067,1761133839451,-500.0,0.00025673,2]
[392061069,1761133839463,-158.12521565,0.00025673,2]
[392061071,1761133839472,-500.58622512,0.00025673,2]
[392061073,1761133839481,-151.0,0.00025678,2]